bitfinex/quotes_ETHUSD_20251010
["timestamp","ask_amount","ask_price","bid_price","bid_amount"]
[1760069413641,5.53989889,4359.2,4359.1,1e-08]
[1760069413852,2.98629889,4359.2,4359.1,1e-08]
[1760069414030,21.40429889,4359.2,4359.1,1e-08]
[1760069414212,23.32429889,4359.2,4359.1,1e-08]
[1760069414545,23.95789889,4359.2,4359.1,1e-08]
[1760069416135,2.92775678,4358.9,4358.4,0.001]
[1760069416336,11.32975678,4358.9,4358.4,0.001]
[1760069416537,11.80275678,4358.9,4358.4,0.001]
[1760069417314,11.80275678,4358.9,4358.6,0.001]
[1760069417827,5.32075678,4358.9,4358.6,0.001]
[1760069418027,23.73975678,4358.9,4358.6,0.001]
[1760069418351,5.32075678,4358.9,4358.6,0.001]
[1760069418551,23.73975678,4358.9,4358.6,0.001]
[1760069420454,24.22979109,4358.9,4358.6,0.001]
[1760069423252,2.29436732,4358.5,4358.4,1e-08]
[1760069423468,10.69736732,4358.5,4358.4,1e-08]
[1760069423628,11.66040163,4358.5,4358.4,1e-08]
[1760069426528,14.04740163,4358.5,4358.4,1e-08]
[1760069427622,5.64440163,4358.5,4358.4,1e-08]
[1760069427828,11.63736732,4358.5,4358.4,1e-08]
[1760069430738,2.76736732,4358.5,4358.4,1e-08]
[1760069430942,11.63736732,4358.5,4358.4,1e-08]
[1760069431153,12.12857131,4358.5,4358.4,1e-08]
[1760069431476,17.06025686,4358.5,4358.4,1e-08]
[1760069434172,12.12857131,4358.5,4358.4,1e-08]
[1760069437264,11.63736732,4358.5,4358.4,1e-08]
[1760069437471,12.12952254,4358.5,4358.4,1e-08]
[1760069441796,3.35215522,4358.5,4358.4,1e-08]
[1760069442100,11.63636732,4358.5,4358.4,1e-08]
[1760069442263,12.12852254,4358.5,4358.4,1e-08]
[1760069446516,19.61380809,4358.5,4358.4,1e-08]
[1760069446658,9.77981081,4358.2,4358.1,1e-08]
[1760069446857,17.36944696,4358.2,4358.1,1e-08]
[1760069447101,17.83534696,4358.2,4358.1,1e-08]
[1760069447328,17.21986603,4358.2,4358.1,1e-08]
[1760069448621,3.88618048,4358.2,4358.1,1e-08]
[1760069448805,12.75518048,4358.2,4358.1,1e-08]
[1760069450941,14.67518048,4358.2,4358.1,1e-08]
[1760069451330,19.60686603,4358.2,4358.1,1e-08]
[1760069454449,12.75518048,4358.2,4358.1,1e-08]
[1760069455147,3.88618048,4358.2,4358.1,1e-08]
[1760069455315,12.75618048,4358.2,4358.1,1e-08]
[1760069455653,3.88618048,4358.2,4358.1,1e-08]
[1760069455812,12.12258048,4358.2,4358.1,1e-08]
[1760069456014,0.95805522,4358.2,4358.1,1e-08]
[1760069456248,9.1619,4358.2,4358.1,1e-08]
[1760069456548,0.42435153,4358.6,4358.1,4.93168556]
[1760069456752,0.002,4359.1,4358.5,4.93168555]
[1760069457052,0.002,4359.1,4358.2,0.45624525]
[1760069457053,0.833,4359.1,4359.0,7.2257897]
[1760069457248,0.833,4359.1,4359.0,9.1457897]
[1760069457453,0.833,4359.1,4359.0,4.68270415]
[1760069458568,0.833,4359.1,4359.0,4.79710415]
[1760069459023,0.002,4359.1,4359.0,4.79710415]
[1760069460362,0.002,4359.1,4359.0,2.0344]
[1760069460659,2.85,4359.1,4358.1,0.00100001]
[1760069460841,0.1144,4358.8,4358.2,2.2944915]
[1760069461146,0.1144,4358.8,4358.3,2.29445484]
[1760069461363,0.1144,4358.8,4358.4,2.29441344]
[1760069461534,0.1144,4358.8,4358.5,2.2943667]
[1760069461735,0.1144,4358.8,4358.3,2.29443249]
[1760069462288,0.1144,4358.8,4358.1,2.40993299]
[1760069462491,0.1144,4358.8,4358.1,0.11540001]
[1760069462808,0.1144,4358.8,4358.1,2.40995152]
[1760069463404,0.1144,4358.8,4358.7,2.29426205]
[1760069463608,0.17964853,4358.8,4358.5,2.29431987]
[1760069463875,0.17964853,4358.8,4358.2,0.6244]
[1760069464070,0.17964853,4358.8,4358.3,2.29447088]
[1760069464271,0.17964853,4358.8,4358.4,2.29439232]
[1760069464473,0.17964853,4358.8,4358.1,0.11540001]
[1760069464816,2.29450947,4358.3,4358.1,0.00100001]
[1760069464973,4.9694,4358.2,4358.1,0.00100001]
[1760069465173,5.4304,4358.2,4358.1,0.00100001]
[1760069466235,4.9694,4358.2,4358.1,0.00100001]
[1760069466884,5.4304,4358.2,4358.1,0.00100001]
[1760069467484,0.08333606,4358.2,4358.1,0.00100001]
[1760069467684,6.39133606,4358.2,4358.1,0.00100001]
[1760069468699,6.85233606,4358.2,4358.1,0.00100001]
[1760069468907,6.39133606,4358.2,4358.1,0.00100001]
[1760069469116,6.85233606,4358.2,4358.1,0.00100001]
[1760069469921,9.14686132,4358.2,4358.1,0.00100001]
[1760069470139,6.85233606,4358.2,4358.1,0.00100001]
[1760069471218,6.85233606,4358.2,4358.1,0.07540001]
[1760069471518,6.39133606,4358.2,4358.1,0.07540001]
[1760069471720,6.85233606,4358.2,4358.1,0.07540001]
[1760069472829,0.08333606,4358.2,4358.1,2.36997792]
[1760069473031,6.56433606,4358.2,4358.1,0.07540001]
[1760069474523,6.481,4358.2,4358.1,2.39292369]
[1760069474737,6.481,4358.2,4358.1,1.99540001]
[1760069475531,6.942,4358.2,4358.1,0.07540001]
[1760069475709,7.0564,4358.2,4358.1,0.07540001]
[1760069477429,6.5974,4358.2,4358.1,0.07540001]
[1760069478235,0.1164,4358.2,4358.1,0.07540001]
[1760069478397,0.002,4358.2,4358.1,2.36997792]
[1760069478601,0.002,4358.2,4358.1,4.91437792]
[1760069479354,0.002,4358.2,4358.1,19.68647765]
[1760069479495,0.002,4358.2,4358.1,20.32007765]
[1760069479698,0.002,4358.7,4358.4,2.29439714]
[1760069480003,0.002,4358.7,4358.5,2.57654367]
[1760069480210,0.002,4358.7,4358.6,4.96231468]
[1760069480542,0.002,4358.7,4358.6,5.43091468]
[1760069480714,0.002,4358.7,4358.6,11.91191468]
[1760069481644,0.002,4358.7,4358.6,4.79731468]
[1760069481816,0.002,4358.7,4358.6,5.43091468]
[1760069485334,0.002,4358.7,4358.6,5.72978083]
[1760069485515,0.002,4358.7,4358.6,5.43091468]
[1760069487240,0.002,4358.7,4358.6,11.91091468]
[1760069487650,0.002,4358.7,4358.6,5.43091468]
[1760069488126,0.002,4358.7,4358.6,11.90991468]
[1760069488584,0.002,4358.7,4358.6,5.43091468]
[1760069488756,0.002,4358.7,4358.6,11.90991468]
[1760069493178,0.002,4358.7,4358.6,4.32871468]
[1760069493655,0.002,4358.7,4358.6,2.40871468]
[1760069494746,0.002,4358.7,4358.4,2.29437516]
[1760069494948,0.4613,4358.7,4358.4,2.40877516]
[1760069495378,0.4613,4358.7,4358.4,0.1144]
[1760069495547,0.4613,4358.7,4358.1,1.99540001]
[1760069495548,2.9253,4358.6,4358.1,0.07540001]
[1760069495878,0.1144,4358.2,4358.1,0.07540001]
[1760069496039,2.40892526,4358.2,4358.1,0.07540001]
[1760069496247,2.86822526,4358.2,4358.1,0.07540001]
[1760069498256,5.42182526,4358.2,4358.1,1e-08]
[1760069500257,2.86822526,4358.2,4358.1,1e-08]
[1760069500444,11.37722526,4358.2,4358.1,1e-08]
[1760069502868,11.26282526,4358.2,4358.1,1e-08]
[1760069506793,11.89642526,4358.2,4358.1,1e-08]
[1760069507320,13.81642526,4358.2,4358.1,1e-08]
[1760069508770,2.75382526,4358.2,4358.1,1e-08]
[1760069508970,11.19382526,4358.2,4358.1,1e-08]
[1760069510797,8.8993,4358.2,4358.1,1e-08]
[1760069511002,11.19382526,4358.2,4358.1,1e-08]
[1760069512074,11.19382526,4358.2,4358.1,0.00100001]
[1760069512583,11.19582526,4358.2,4358.1,0.00100001]
[1760069515007,11.62382526,4358.2,4358.1,0.00100001]
[1760069515704,9.3293,4358.2,4358.1,0.00100001]
[1760069515891,11.62382526,4358.2,4358.1,0.00100001]
[1760069517579,9.3406,4358.2,4358.1,0.00100001]
[1760069518209,8.87,4358.2,4358.1,0.00100001]
[1760069518725,9.3406,4358.2,4358.1,0.00100001]
[1760069520114,8.87,4358.2,4358.1,0.00100001]
[1760069521227,9.3406,4358.2,4358.1,0.00100001]
[1760069521444,8.87,4358.2,4358.1,0.00100001]
[1760069521998,9.3406,4358.2,4358.1,0.00100001]
[1760069523946,11.63512526,4358.2,4358.1,0.00100001]
[1760069524238,13.55512526,4358.2,4358.1,0.00100001]
[1760069525330,14.0471831,4358.2,4358.1,0.00100001]
[1760069526313,14.6807831,4358.2,4358.1,0.00100001]
[1760069526630,14.0471831,4358.2,4358.1,0.00100001]
[1760069526833,0.49405784,4358.2,4358.1,0.00100001]
[1760069527019,1.593,4358.2,4358.1,0.00100001]
[1760069527531,2.0636,4358.2,4358.1,0.00100001]
[1760069527931,4.35812526,4358.2,4358.1,0.00100001]
[1760069528630,2.0636,4358.2,4358.1,0.00100001]
[1760069531530,1.593,4358.2,4358.1,0.00100001]
[1760069531755,0.002,4358.2,4358.1,2.29557792]
[1760069531906,0.002,4358.2,4358.1,2.89847792]
[1760069531907,2.012,4358.2,4358.1,2.89847792]
[1760069532106,2.012,4358.2,4358.1,2.29557792]
[1760069532453,2.012,4358.2,4358.1,0.00100001]
[1760069533099,2.4826,4358.2,4358.1,0.00100001]
[1760069533306,4.77712526,4358.2,4358.1,0.00100001]
[1760069533507,2.012,4358.2,4358.1,0.00100001]
[1760069535334,2.1264,4358.2,4358.1,0.00100001]
[1760069535728,2.1264,4358.2,4358.1,2.29557792]
[1760069535924,0.002,4358.2,4358.1,2.29557792]
[1760069536250,0.002,4358.2,4358.1,3.01287792]
[1760069536821,0.002,4358.2,4358.1,4.81847792]
[1760069537621,0.002,4358.7,4358.2,0.0724]
[1760069537826,0.002,4358.7,4358.5,2.29434095]
[1760069538151,0.002,4358.7,4358.6,2.31725782]
[1760069539629,0.002,4358.7,4358.2,0.0724]
[1760069539630,0.4726,4358.7,4358.2,0.0724]
[1760069539835,0.4706,4358.6,4358.2,2.36690383]
[1760069540231,0.4706,4358.6,4358.3,2.29444599]
[1760069540837,0.4706,4358.6,4358.2,2.36692411]
[1760069541457,0.002,4358.7,4358.2,0.0724]
[1760069541658,0.002,4358.7,4358.3,2.29442633]
[1760069542227,0.4726,4358.7,4358.3,2.29442633]
[1760069542726,0.4726,4358.7,4358.2,0.0724]
[1760069542930,0.4726,4358.7,4358.2,2.36691881]
[1760069544138,0.002,4358.7,4358.2,0.0724]
[1760069544338,2.76496244,4358.6,4358.2,0.0724]
[1760069544561,0.4706,4358.6,4358.2,0.0724]
[1760069545345,0.002,4358.7,4358.2,2.36692196]
[1760069545552,0.4726,4358.7,4358.2,0.0724]
[1760069545797,0.002,4358.7,4358.2,2.36692353]
[1760069546283,0.4706,4358.6,4358.2,2.36692353]
[1760069546449,0.002,4358.7,4358.4,2.29441997]
[1760069546778,0.002,4358.7,4358.5,2.29432508]
[1760069546938,0.002,4358.6,4358.5,2.29432508]
[1760069547335,0.002,4358.6,4358.4,2.29441432]
[1760069547751,0.002,4358.6,4358.2,0.0724]
[1760069548042,0.4625,4358.6,4358.2,0.0724]
[1760069548363,0.4625,4358.6,4358.3,2.29446599]
[1760069548567,0.002,4358.6,4358.3,2.29446599]
[1760069548743,0.4605,4358.5,4358.3,2.29446599]
[1760069549354,0.002,4358.6,4358.3,2.29446599]
[1760069549574,0.002,4358.6,4358.3,2.29444747]
[1760069549888,0.002,4358.6,4358.5,2.29436732]
[1760069551353,0.002,4358.6,4358.5,2.31731099]
[1760069551653,0.002,4358.6,4358.5,2.74991099]
[1760069551856,0.002,4358.6,4358.5,2.84136732]
[1760069555072,0.002,4358.6,4358.5,4.78431099]
[1760069555257,0.002,4359.1,4359.0,2.29410415]
[1760069555459,0.002,4359.1,4359.0,19.5104094]
[1760069555785,0.002,4359.1,4359.0,19.9430094]
[1760069563310,0.002,4359.1,4359.0,26.4210094]
[1760069567422,0.002,4359.1,4359.0,19.9430094]
[1760069567595,0.002,4359.1,4359.0,26.4210094]
[1760069568608,0.002,4359.1,4359.0,19.9430094]
[1760069568813,0.002,4359.1,4359.0,26.4210094]
[1760069569115,0.002,4359.1,4359.0,19.9430094]
[1760069569317,0.002,4359.1,4359.0,26.4210094]
[1760069569514,0.002,4359.1,4359.0,16.16400792]
[1760069570212,0.002,4359.1,4359.0,2.0344]
[1760069570421,0.002,4359.1,4359.0,4.92490377]
[1760069570590,0.002,4359.1,4359.0,7.21900792]
[1760069571487,0.002,4359.1,4359.0,2.29410415]
[1760069576024,0.4735,4359.1,4358.6,0.001]
[1760069576224,0.1144,4359.0,4358.6,0.001]
[1760069576598,0.4715,4358.9,4358.6,0.001]
[1760069576797,0.4715,4358.9,4358.6,2.29528063]
[1760069577005,0.4468,4358.8,4358.7,2.29426205]
[1760069577206,0.1144,4359.0,4358.9,2.29415678]
[1760069578508,0.002,4359.1,4359.0,2.29410415]
[1760069580031,0.002,4359.1,4358.8,2.29416079]
[1760069580032,0.4488,4359.1,4358.8,2.29416079]
[1760069580238,0.4488,4359.1,4358.9,2.29413809]
[1760069580811,0.002,4359.1,4358.7,2.40864273]
[1760069581019,0.4468,4359.0,4358.6,0.001]
[1760069581349,0.4468,4358.9,4358.6,0.001]
[1760069581849,9.3098,4358.8,4358.6,0.001]
[1760069582006,0.1144,4358.7,4358.6,0.001]
[1760069582211,0.1144,4358.7,4358.6,2.29531468]
[1760069582451,0.1144,4358.7,4358.6,0.001]
[1760069582856,0.5612,4358.7,4358.6,0.001]
[1760069583406,0.52849634,4358.7,4358.6,0.001]
[1760069584940,0.08169634,4358.7,4358.6,0.001]
[1760069585741,0.08169634,4358.7,4358.6,2.29531468]
[1760069585939,0.1144,4359.0,4358.6,2.76285782]
[1760069586141,6.478,4358.9,4358.6,2.31825782]
[1760069586360,6.478,4358.9,4358.8,2.29420941]
[1760069586557,6.478,4358.9,4358.7,2.29421663]
[1760069586758,6.478,4358.9,4358.6,0.001]
[1760069587067,0.5612,4358.8,4358.6,0.001]
[1760069587239,0.52905912,4358.8,4358.6,0.001]
[1760069587440,0.1144,4358.8,4358.6,0.001]
[1760069587768,0.1144,4358.8,4358.6,2.29530839]
[1760069587937,0.1144,4358.8,4358.7,2.29426205]
[1760069588118,0.1144,4358.8,4358.6,0.001]
[1760069588119,0.1144,4358.8,4358.6,2.29530843]
[1760069588326,0.1144,4358.8,4358.6,0.001]
[1760069588771,0.1144,4358.8,4358.6,2.29530956]
[1760069588963,0.1144,4358.8,4358.6,0.001]
[1760069589443,0.4455,4358.7,4358.6,0.001]
[1760069589838,0.4455,4358.7,4358.6,2.29531468]
[1760069590046,0.1144,4358.8,4358.7,2.29426205]
[1760069590557,0.1144,4358.8,4358.6,2.29530829]
[1760069591174,0.1144,4358.8,4358.7,2.29426205]
[1760069591470,6.478,4358.9,4358.8,2.29420941]
[1760069591823,2.388,4359.1,4359.0,2.29410415]
[1760069591824,0.002,4359.1,4359.0,2.29410415]
[1760069592063,6.48,4359.1,4359.0,2.29410415]
[1760069592474,0.002,4359.1,4359.0,2.29410415]
[1760069592672,0.002,4359.1,4359.0,2.76164519]
[1760069593128,0.002,4359.1,4359.0,2.31704519]
[1760069593645,0.002,4359.1,4359.0,2.29410415]
[1760069594145,0.002,4359.1,4359.0,2.73870415]
[1760069595129,0.002,4359.1,4359.0,4.65870415]
[1760069595448,0.002,4359.1,4359.0,4.77310415]
[1760069596356,0.002,4359.1,4359.0,10.12587858]
[1760069596730,0.002,4359.1,4359.0,10.57047858]
[1760069599873,0.002,4359.1,4359.0,10.12587858]
[1760069600074,0.002,4359.1,4359.0,7.83177443]
[1760069600273,0.002,4359.1,4359.0,7.71737443]
[1760069600444,0.002,4359.1,4359.0,10.01147858]
[1760069601047,0.002,4359.1,4359.0,8.09147858]
[1760069602491,0.002,4359.1,4358.9,0.0744]
[1760069602648,0.4455,4359.0,4358.9,0.0744]
[1760069603873,0.002,4359.1,4358.9,0.0744]
[1760069604047,0.4475,4359.1,4358.9,0.0744]
[1760069604358,0.4455,4359.0,4358.9,0.0744]
[1760069605740,2.73960415,4359.0,4358.9,0.0744]
[1760069610478,0.002,4359.1,4358.9,5.87177443]
[1760069610776,0.01,4359.9,4359.1,0.6336]
[1760069611083,0.002,4360.0,4359.9,2.29363058]
[1760069611278,0.002,4360.0,4359.9,5.03725966]
[1760069611480,0.002,4360.0,4359.9,5.47302336]
[1760069611983,0.002,4360.0,4359.9,4.67233058]
[1760069612279,0.002,4360.0,4359.9,2.29363058]
[1760069612447,0.002,4360.0,4359.9,2.38563058]
[1760069612677,0.002,4360.0,4359.8,2.29366764]
[1760069612882,0.002,4360.0,4359.9,2.29363058]
[1760069613799,0.002,4360.0,4359.9,4.69526688]
[1760069614114,0.002,4360.0,4359.9,5.30593058]
[1760069614683,0.002,4361.4,4360.8,2.29315721]
[1760069615010,0.002,4361.4,4360.8,4.23608878]
[1760069615184,0.002,4361.4,4360.8,4.69478878]
[1760069615386,0.002,4361.4,4360.8,4.67185721]
[1760069615716,0.002,4361.4,4360.8,4.76366465]
[1760069616016,0.002,4361.4,4360.8,5.39726465]
[1760069616713,0.002,4361.4,4360.8,11.91526465]
[1760069619444,0.002,4361.4,4360.9,0.6336]
[1760069619600,0.002,4361.4,4361.3,2.92649432]
[1760069619793,0.002,4361.4,4361.3,11.36249432]
[1760069620108,0.002,4361.4,4361.3,11.82119432]
[1760069620683,0.002,4361.4,4361.3,11.93559432]
[1760069621410,0.002,4361.4,4361.3,12.04999432]
[1760069622016,0.002,4361.4,4361.3,12.05499432]
[1760069622321,0.002,4361.4,4361.3,5.53399432]
[1760069622531,0.002,4361.4,4361.3,11.42039432]
[1760069622890,0.002,4361.4,4361.3,12.05399432]
[1760069623722,0.002,4361.4,4361.3,11.30499432]
[1760069625430,0.002,4361.4,4361.3,4.78599432]
[1760069625599,0.002,4361.4,4361.3,11.30499432]
[1760069626029,0.002,4361.4,4361.3,4.32729432]
[1760069626729,0.002,4361.4,4361.3,2.0344]
[1760069626900,0.002,4361.4,4361.3,1.92]
[1760069627096,0.002,4361.4,4361.0,0.1144]
[1760069627710,0.002,4361.4,4361.0,2.40744959]
[1760069629253,0.456,4361.4,4361.0,2.40744959]
[1760069629545,0.456,4361.4,4361.0,0.1144]
[1760069629746,0.002,4361.4,4361.0,0.1144]
[1760069629931,0.454,4361.3,4360.4,0.68860485]
[1760069630135,0.454,4361.2,4360.4,0.68860485]
[1760069630334,2.2948523,4361.4,4360.4,0.68860485]
[1760069630335,2.29317494,4360.8,4360.4,0.68860485]
[1760069630638,9.301,4360.7,4359.9,2.2936179]
[1760069631555,0.454,4360.6,4359.7,2.29372912]
[1760069631714,0.454,4360.6,4359.8,2.29366981]
[1760069632349,0.454,4360.6,4359.3,0.4402]
[1760069632541,0.454,4360.6,4360.0,2.2935757]
[1760069632943,0.454,4360.6,4359.8,2.2936353]
[1760069633128,0.454,4360.6,4359.9,2.29362182]
[1760069635022,0.454,4360.6,4359.7,1.92]
[1760069635023,0.454,4360.6,4360.0,2.29356948]
[1760069635748,6.517,4360.5,4360.0,2.29356948]
[1760069635954,6.517,4360.5,4359.9,2.29362814]
[1760069636133,6.517,4360.5,4360.0,2.29357303]
[1760069636328,6.971,4360.5,4360.0,2.29357303]
[1760069638257,6.971,4360.5,4359.8,2.29363153]
[1760069638435,6.971,4360.5,4359.9,2.31656258]
[1760069638836,6.971,4360.5,4360.0,2.29357013]
[1760069639434,6.517,4360.5,4360.1,0.02293525]
[1760069639741,6.517,4360.5,4360.4,2.29336758]
[1760069640974,6.517,4360.5,4360.4,2.73786758]
[1760069641467,6.517,4360.5,4360.1,4.35790823]
[1760069641672,6.517,4360.5,4360.4,2.29336758]
[1760069642538,0.002,4361.4,4360.7,2.29320653]
[1760069642763,0.1144,4361.2,4360.9,2.29307428]
[1760069644236,0.1144,4361.2,4361.0,2.2930498]
[1760069644441,0.002,4361.4,4361.1,0.4445]
[1760069644743,0.002,4361.4,4361.3,2.29289432]
[1760069645052,0.002,4361.4,4361.3,4.21289432]
[1760069645254,0.002,4361.4,4361.3,4.65739432]
[1760069645870,0.002,4361.4,4361.3,4.68032326]
[1760069646072,0.002,4361.4,4361.3,4.65739432]
[1760069646243,0.002,4361.4,4361.3,4.68032326]
[1760069647376,0.05754795,4362.3,4361.9,2.29253283]
[1760069647583,0.05754795,4362.3,4362.0,0.02292526]
[1760069647880,0.05754795,4362.3,4361.4,2.73731039]
[1760069648086,0.05754795,4362.3,4361.4,0.4445]
[1760069648448,0.05754795,4362.3,4361.9,2.2925623]
[1760069648977,0.05754795,4362.3,4361.7,0.02292684]
[1760069648978,0.05754795,4362.3,4362.0,2.31542918]
[1760069649292,0.05754795,4362.3,4362.1,2.29245638]
[1760069649458,0.05754795,4362.3,4362.2,0.02292421]
[1760069649771,0.05754795,4362.3,4362.2,2.31534546]
[1760069650159,0.05754795,4362.3,4362.2,2.75984546]
[1760069650772,0.05754795,4362.3,4362.2,2.73692125]
[1760069651480,0.05754795,4362.3,4361.9,1.92]
[1760069651685,0.05754795,4362.3,4361.5,1.92]
[1760069651865,0.05754795,4362.3,4362.0,2.29252593]
[1760069652060,0.05754795,4362.3,4361.4,0.46189708]
[1760069652261,2.29247643,4362.1,4360.4,0.4445]
[1760069652465,0.4562,4362.0,4361.2,2.29293481]
[1760069652674,0.2191,4361.9,4361.3,2.29288155]
[1760069652974,0.2191,4361.9,4361.2,2.29294024]
[1760069653374,0.2191,4361.9,4360.4,1.92]
[1760069653659,0.2191,4361.9,4360.4,2.3645]
[1760069653660,0.4538,4361.8,4360.4,2.3645]
[1760069653859,0.4538,4361.8,4361.2,2.29294231]
[1760069654477,0.5682,4361.8,4361.2,2.29294231]
[1760069655077,0.5682,4361.8,4361.0,0.1144]
[1760069655276,2.86083765,4361.8,4361.0,0.1144]
[1760069655475,0.5682,4361.8,4361.0,2.40743474]
[1760069655877,2.8388,4361.7,4360.3,0.68858114]
[1760069656100,2.8388,4361.7,4360.4,0.1144]
[1760069656101,2.29297715,4361.2,4360.4,0.1144]
[1760069656306,0.1144,4361.0,4360.2,0.1144]
[1760069656468,0.5682,4361.0,4360.2,0.1144]
[1760069657183,2.86125934,4361.0,4360.2,0.1144]
[1760069657386,0.4538,4361.0,4360.1,0.01]
[1760069657588,0.4538,4361.0,4360.2,2.29347277]
[1760069657589,0.1144,4360.6,4360.2,2.29347277]
[1760069657766,2.8754,4360.9,4360.3,0.4674342]
[1760069657963,2.8754,4360.9,4360.5,2.29330588]
[1760069658165,0.4538,4360.8,4360.6,0.02293262]
[1760069658363,0.4538,4360.8,4360.1,0.01]
[1760069658598,2.761,4360.9,4360.1,0.01]
[1760069658909,2.29290894,4361.3,4360.1,0.01]
[1760069658910,7.203,4360.8,4360.1,0.01]
[1760069659569,0.4538,4360.7,4360.1,0.01]
[1760069660400,2.74701124,4360.7,4360.1,0.01]
[1760069660767,0.4538,4360.7,4360.1,0.01]
[1760069662607,0.4538,4360.7,4360.3,0.001]
[1760069663410,0.4538,4360.6,4360.3,0.001]
[1760069665110,0.4538,4360.5,4360.3,0.001]
[1760069665635,0.4538,4360.4,4360.3,0.001]
[1760069667235,2.74716758,4360.4,4360.3,0.001]
[1760069667407,7.6568,4360.8,4360.3,0.001]
[1760069667609,9.3518,4360.7,4360.3,0.001]
[1760069667828,8.898,4360.6,4360.3,0.001]
[1760069668127,9.3518,4360.6,4360.3,0.001]
[1760069668340,0.4538,4360.5,4360.3,0.001]
[1760069668696,0.4538,4360.4,4360.3,0.001]
[1760069670195,8.898,4360.6,4360.3,0.001]
[1760069670826,0.1144,4360.4,4360.3,0.001]
[1760069671601,0.1144,4360.4,4360.3,2.29442017]
[1760069671800,2.74675483,4361.2,4360.3,0.4970342]
[1760069672008,2.29274901,4361.6,4360.3,0.4970342]
[1760069672009,0.1144,4360.7,4360.3,0.4970342]
[1760069672200,0.2184,4360.7,4360.6,4.92369287]
[1760069673259,0.2184,4360.7,4360.3,0.001]
[1760069673553,0.4538,4360.6,4360.3,0.001]
[1760069674128,0.4538,4360.6,4360.3,2.29441987]
[1760069674321,0.4538,4360.6,4360.4,2.29334934]
[1760069674554,0.2184,4360.7,4360.6,2.29326239]
[1760069674722,0.2184,4360.7,4360.5,7.21700223]
[1760069675453,0.2184,4360.7,4360.5,4.92369287]
[1760069676530,0.2184,4360.7,4360.5,7.2170041]
[1760069677232,0.2184,4360.7,4360.6,2.29326239]
[1760069677437,0.2184,4360.7,4360.6,2.31619501]
[1760069677638,0.104,4360.7,4360.6,2.31619501]
[1760069677947,0.104,4360.7,4360.5,7.2170065]
[1760069678155,0.104,4360.7,4360.5,7.21697466]
[1760069678851,0.104,4360.7,4360.5,4.92369287]
[1760069679260,0.104,4360.7,4360.5,7.21700693]
[1760069679953,0.104,4360.7,4360.5,4.92369287]
[1760069680127,0.104,4360.7,4360.5,7.21700624]
[1760069682147,0.104,4360.7,4360.6,2.29326239]
[1760069682868,0.104,4360.7,4360.6,2.31619501]
[1760069683555,0.104,4360.7,4360.6,0.02293262]
[1760069684008,0.104,4360.7,4360.6,2.31619501]
[1760069685990,0.104,4360.7,4360.6,0.02293262]
[1760069686487,0.104,4360.7,4360.6,7.23988788]
[1760069686682,0.104,4360.7,4360.6,7.21695526]
[1760069687344,0.1144,4361.3,4360.6,4.92369287]
[1760069687644,0.1144,4361.5,4361.2,4.92369287]
[1760069687893,0.1144,4361.5,4361.1,2.29299513]
[1760069687894,0.1144,4361.5,4361.4,4.92369287]
[1760069688892,0.5648,4361.5,4361.1,4.92369287]
[1760069689097,0.4504,4361.4,4361.1,4.92369287]
[1760069689310,0.1144,4361.5,4361.1,4.92369287]
[1760069689513,0.1144,4361.5,4360.8,5.03809287]
[1760069689514,0.4504,4361.3,4360.8,5.03809287]
[1760069689712,0.5648,4361.2,4360.4,0.1144]
[1760069689991,2.29301727,4361.1,4360.6,4.92369287]
[1760069690291,2.29320451,4360.8,4360.1,0.011]
[1760069690641,0.1144,4360.6,4360.1,0.011]
[1760069691140,0.4504,4360.5,4360.1,0.011]
[1760069691490,0.4504,4360.4,4360.1,0.011]
[1760069700531,5.3694,4360.7,4360.2,4.92369287]
[1760069700931,5.3694,4360.7,4360.5,4.92369287]
[1760069701220,4.919,4360.7,4360.5,4.92369287]
[1760069701415,0.4504,4360.6,4360.5,4.92369287]
[1760069702564,1.24624706,4362.1,4360.5,4.92369287]
[1760069702867,1.24624706,4362.1,4360.1,0.011]
[1760069702868,0.1144,4360.6,4360.4,2.2933282]
[1760069703164,0.1144,4360.6,4360.5,2.29331498]
[1760069703728,2.386,4361.3,4360.5,0.45243314]
[1760069703934,0.1144,4361.0,4360.7,2.29320511]
[1760069704134,0.1144,4361.0,4360.9,4.92369287]
[1760069704770,0.1144,4361.0,4360.3,0.1154]
[1760069704931,2.362,4361.1,4360.3,0.1154]
[1760069704932,0.4504,4360.9,4360.3,0.001]
[1760069705131,0.1144,4360.7,4360.5,4.92369287]
[1760069705364,0.4504,4360.6,4360.5,4.92369287]
[1760069706068,0.1144,4360.7,4360.5,4.92369287]
[1760069706567,0.4504,4360.6,4360.5,4.92369287]
[1760069706802,0.4504,4360.6,4360.3,0.001]
[1760069707100,2.385,4360.5,4360.3,0.001]
[1760069707305,6.371,4360.4,4360.3,0.001]
[1760069707460,9.11476758,4360.4,4360.3,0.001]
[1760069707797,9.74836758,4360.4,4360.3,0.001]
[1760069711902,2.2937358,4359.7,4359.1,0.00036643]
[1760069712115,8.889,4359.6,4359.1,0.00036643]
[1760069712410,9.3372,4359.6,4359.1,0.00036643]
[1760069712579,11.63099115,4359.6,4359.1,0.00036643]
[1760069713678,9.3372,4359.6,4359.1,0.00036643]
[1760069715616,0.4482,4359.5,4359.1,0.00036643]
[1760069715818,2.29399889,4359.2,4359.1,0.00036643]
[1760069716117,8.79499889,4359.2,4359.1,0.00036643]
[1760069716489,9.24319889,4359.2,4359.1,0.00036643]
[1760069721137,6.9492,4359.2,4359.1,0.00036643]
[1760069721337,9.3352,4359.2,4359.1,0.00036643]
[1760069721833,6.6154,4359.2,4359.1,0.00036643]
[1760069722333,7.0636,4359.2,4359.1,0.00036643]
[1760069722536,9.35759889,4359.2,4359.1,0.00036643]
[1760069727033,11.27759889,4359.2,4359.1,0.00036643]